fUST/lending_fUST_20240705
["ID","MTS","AMOUNT","RATE_DAILY","PERIOD"]
[331227331,1720144246941,-153.13329186,0.00047772,30]
[331227332,1720144246951,-195.91881382,0.00047793,30]
[331227333,1720144246960,-176.68873957,0.00047858,30]
[331227334,1720144246969,-251.699807,0.00047865,14]
[331227335,1720144246978,-251.699807,0.00047865,14]
[331227336,1720144246987,-151.0,0.00047865,14]
[331227337,1720144246996,-151.0,0.00047865,14]
[331227338,1720144247006,-157.0,0.00048,90]
[331227339,1720144247015,-1000.0,0.00048425,7]
[331227342,1720144247024,-1000.0,0.00048441,7]
[331227345,1720144247033,-151.08380421,0.00048444,30]
[331227348,1720144247042,-1000.0,0.00048585,7]
[331227351,1720144247051,-1000.0,0.00048591,7]
[331227355,1720144247059,-151.0,0.0004863,120]
[331227358,1720144247069,-1000.0,0.00048691,7]
[331227360,1720144247078,-1000.0,0.00048777,7]
[331227363,1720144247088,-176.68873957,0.00048783,30]
[331227366,1720144247097,-210.31462445,0.00048786,30]
[331227369,1720144247105,-2890.72940118,0.000488,90]
[331227373,1720144247115,-3962.51834704,0.000488,90]
[331227376,1720144247124,-153.17748372,0.0004887,30]
[331227378,1720144247133,-1000.0,0.00048883,7]
[331227381,1720144247143,-151.0,0.00048904,90]
[331227383,1720144247152,-346.68161193,0.00049015,2]
[331227385,1720144247162,-1000.0,0.00049091,7]
[331227387,1720144247171,-2492.59560194,0.00049115,120]
[331227389,1720144247180,-153.17748382,0.00049124,30]
[331227391,1720144247191,-151.08380429,0.00049155,30]
[331227393,1720144247200,-1000.0,0.00049238,7]
[331227394,1720144247209,-4603.61366551,0.00049284,6]
[331227396,1720144247218,-1000.0,0.00049294,7]
[331227398,1720144247227,-9207.22733102,0.00049305,6]
[331227400,1720144247236,-1181.37,0.00049315,120]
[331227402,1720144247246,-500.0,0.00049315,120]
[331227404,1720144247255,-500.0,0.00049315,120]
[331227406,1720144247264,-1613.26,0.00049315,120]
[331227408,1720144247273,-1613.26,0.00049315,120]
[331227409,1720144247283,-1613.26,0.00049315,120]
[331227411,1720144247292,-1613.26,0.00049315,120]
[331227413,1720144247301,-1613.26,0.00049315,120]
[331227415,1720144247311,-1613.26,0.00049315,120]
[331227417,1720144247320,-1613.26,0.00049315,120]
[331227419,1720144247329,-1613.26,0.00049315,120]
[331227421,1720144247338,-1613.26,0.00049315,120]
[331227422,1720144247348,-1613.26,0.00049315,120]
[331227423,1720144247357,-1613.26,0.00049315,120]
[331227424,1720144247367,-1613.26,0.00049315,120]
[331227425,1720144247376,-1613.26,0.00049315,120]
[331227427,1720144247385,-1613.26,0.00049315,120]
[331227429,1720144247395,-1613.26,0.00049315,120]
[331227431,1720144247405,-1613.26,0.00049315,120]
[331227433,1720144247414,-2626.03,0.00049315,120]
[331227434,1720144247424,-324.82950934,0.00049315,3]
[331227436,1720144247434,-500.0,0.00049315,120]
[331227437,1720144247444,-3781.74,0.00049315,120]
[331227438,1720144247453,-616.11810694,0.00049315,120]
[331227439,1720144247462,-500.0,0.00049315,120]
[331227440,1720144247475,-449.87222374,0.00049315,120]
[331227441,1720144247485,-502.18671988,0.00049315,120]
[331227442,1720144247494,-500.95782972,0.00049315,120]
[331227443,1720144247503,-502.77114198,0.00049315,120]
[331227444,1720144247512,-500.0,0.00049315,120]
[331227445,1720144247521,-503.96467311,0.00049315,120]
[331227446,1720144247530,-500.0,0.00049315,120]
[331227447,1720144247539,-502.97470883,0.00049315,120]
[331227448,1720144247548,-642.0018439,0.00049315,120]
[331227449,1720144247557,-502.48549787,0.00049315,120]
[331227450,1720144247567,-504.46576983,0.00049315,120]
[331227451,1720144247576,-502.56183068,0.00049315,120]
[331227452,1720144247585,-500.0,0.00049315,120]
[331227453,1720144247594,-500.0,0.00049315,120]
[331227454,1720144247603,-502.49589144,0.00049315,120]
[331227455,1720144247614,-502.33949866,0.00049315,120]
[331227456,1720144247623,-156.34499924,0.00049315,120]
[331227457,1720144247632,-502.26536808,0.00049315,120]
[331227458,1720144247646,-500.0,0.00049315,120]
[331227459,1720144247655,-500.0,0.00049315,120]
[331227460,1720144247665,-503.3471544,0.00049315,120]
[331227461,1720144247674,-986.08,0.00049315,120]
[331227462,1720144247687,-500.0,0.00049315,120]
[331227463,1720144247697,-502.94933944,0.00049315,120]
[331227464,1720144247706,-500.0,0.00049315,120]
[331227465,1720144247715,-500.0,0.00049315,120]
[331227466,1720144247724,-500.0,0.00049315,120]
[331227467,1720144247734,-500.0,0.00049315,120]
[331227468,1720144247744,-500.0,0.00049315,120]
[331227469,1720144247753,-500.0,0.00049315,120]
[331227471,1720144247763,-500.0,0.00049315,120]
[331227472,1720144247772,-500.0,0.00049315,120]
[331227474,1720144247781,-556.3342838,0.00049315,120]
[331227476,1720144247790,-724.93,0.00049315,120]
[331227478,1720144247801,-503.54244066,0.00049315,120]
[331227480,1720144247810,-500.0,0.00049315,120]
[331227482,1720144247818,-565.50204062,0.00049315,120]
[331227484,1720144247826,-503.54115524,0.00049315,120]
[331227486,1720144247836,-500.0,0.00049315,120]
[331227488,1720144247845,-272.64568751,0.00049315,120]
[331227490,1720144247854,-507.88657103,0.00049315,120]
[331227492,1720144247863,-500.0,0.00049315,120]
[331227494,1720144247872,-500.0,0.00049315,120]
[331227496,1720144247882,-500.0,0.00049315,120]
[331227500,1720144247891,-504.82073317,0.00049315,120]
[331227501,1720144247900,-513.01293452,0.00049315,120]
[331227503,1720144247909,-500.0,0.00049315,120]
[331227506,1720144247918,-502.1658958,0.00049315,120]
[331227508,1720144247927,-500.0,0.00049315,120]
[331227510,1720144247940,-500.0,0.00049315,120]
[331227512,1720144247950,-500.0,0.00049315,120]
[331227514,1720144247959,-500.0,0.00049315,120]
[331227516,1720144247968,-500.0,0.00049315,120]
[331227517,1720144247977,-512.31326164,0.00049315,120]
[331227519,1720144247986,-450.12371128,0.00049315,120]
[331227521,1720144247994,-500.0,0.00049315,120]
[331227523,1720144248003,-426.93233001,0.00049315,120]
[331227525,1720144248012,-500.0,0.00049315,120]
[331227527,1720144248021,-500.0,0.00049315,120]
[331227529,1720144248031,-500.0,0.00049315,120]
[331227531,1720144248040,-554.85018895,0.00049315,120]
[331227533,1720144248050,-500.0,0.00049315,120]
[331227535,1720144248060,-500.0,0.00049315,120]
[331227538,1720144248069,-500.0,0.00049315,120]
[331227550,1720144248177,-500.0,0.00049315,120]
[331227552,1720144248190,-500.0,0.00049315,120]
[331227554,1720144248199,-502.86195445,0.00049315,120]
[331227556,1720144248209,-500.0,0.00049315,120]
[331227558,1720144248219,-500.0,0.00049315,120]
[331227560,1720144248228,-500.0,0.00049315,120]
[331227562,1720144248238,-363.59703294,0.00049315,120]
[331227564,1720144248249,-500.0,0.00049315,120]
[331227566,1720144248258,-186.326574,0.00049315,14]
[331227568,1720144248267,-186.326574,0.00049315,14]
[331227570,1720144248277,-500.0,0.00049315,120]
[331227572,1720144248286,-231.60980366,0.00049315,120]
[331227574,1720144248295,-186.326574,0.00049315,14]
[331227576,1720144248304,-186.326574,0.00049315,14]
[331227578,1720144248314,-590.20016425,0.00049315,120]
[331227580,1720144248323,-502.03075951,0.00049315,120]
[331227582,1720144248332,-500.96580521,0.00049315,120]
[331227584,1720144248342,-501.42535814,0.00049315,120]
[331227586,1720144248353,-501.40875437,0.00049315,120]
[331227589,1720144248362,-500.0,0.00049315,120]
[331227591,1720144248371,-500.0,0.00049315,120]
[331227593,1720144248380,-500.0,0.00049315,120]
[331227594,1720144248389,-500.0,0.00049315,120]
[331227596,1720144248398,-500.0,0.00049315,120]
[331227598,1720144248407,-1317.53,0.00049315,120]
[331227600,1720144248417,-500.0,0.00049315,120]
[331227602,1720144248426,-213.49346835,0.00049315,120]
[331227604,1720144248437,-500.0,0.00049315,120]
[331227606,1720144248445,-500.0,0.00049315,120]
[331227608,1720144248454,-500.0,0.00049315,120]
[331227610,1720144248463,-503.02606417,0.00049315,120]
[331227612,1720144248472,-500.0,0.00049315,120]
[331227614,1720144248480,-501.57728565,0.00049315,120]
[331227616,1720144248489,-502.82946891,0.00049315,120]
[331227618,1720144248498,-500.98,0.00049315,120]
[331227620,1720144248507,-500.0,0.00049315,120]
[331227622,1720144248517,-503.9715284,0.00049315,120]
[331227624,1720144248526,-500.0,0.00049315,120]
[331227626,1720144248535,-500.0,0.00049315,120]
[331227628,1720144248544,-503.32049156,0.00049315,120]
[331227630,1720144248553,-500.0,0.00049315,120]
[331227632,1720144248563,-502.01375414,0.00049315,120]
[331227635,1720144248572,-500.0,0.00049315,120]
[331227636,1720144248582,-677.94,0.00049315,120]
[331227638,1720144248591,-500.0,0.00049315,120]
[331227640,1720144248600,-504.58308835,0.00049315,120]
[331227643,1720144248610,-596.37,0.00049315,120]
[331227644,1720144248623,-285.308623,0.00049315,14]
[331227646,1720144248632,-500.0,0.00049315,120]
[331227649,1720144248642,-500.0,0.00049315,120]
[331227650,1720144248651,-500.0,0.00049315,120]
[331227652,1720144248661,-285.308623,0.00049315,14]
[331227654,1720144248671,-438.01398173,0.00049315,120]
[331227656,1720144248680,-502.62716098,0.00049315,120]
[331227658,1720144248702,-500.0,0.00049315,120]
[331227660,1720144248711,-500.0,0.00049315,120]
[331227662,1720144248721,-214.47622494,0.00049315,120]
[331227664,1720144248730,-500.0,0.00049315,120]
[331227666,1720144248740,-346.32194337,0.00049315,10]
[331227668,1720144248749,-500.0,0.00049315,120]
[331227670,1720144248759,-504.49654888,0.00049315,120]
[331227672,1720144248769,-501.59042965,0.00049315,120]
[331227674,1720144248779,-500.0,0.00049315,120]
[331227676,1720144248788,-501.8652521,0.00049315,120]
[331227678,1720144248800,-500.0,0.00049315,120]
[331227680,1720144248809,-500.0,0.00049315,120]
[331227682,1720144248819,-507.10932179,0.00049315,120]
[331227684,1720144248830,-500.0,0.00049315,120]
[331227686,1720144248839,-500.0,0.00049315,120]
[331227688,1720144248849,-501.49252065,0.00049315,120]
[331227690,1720144248858,-500.0,0.00049315,120]
[331227692,1720144248867,-513.92215637,0.00049315,120]
[331227694,1720144248877,-816.73,0.00049315,120]
[331227696,1720144248886,-510.02491728,0.00049315,120]
[331227698,1720144248895,-816.73,0.00049315,120]
[331227700,1720144248904,-816.73,0.00049315,120]
[331227702,1720144248913,-501.49605061,0.00049315,120]
[331227704,1720144248923,-816.73,0.00049315,120]
[331227707,1720144248936,-816.73,0.00049315,120]
[331227709,1720144248946,-500.0,0.00049315,120]
[331227711,1720144248955,-816.73,0.00049315,120]
[331227713,1720144248964,-816.73,0.00049315,120]
[331227715,1720144248974,-816.73,0.00049315,120]
[331227716,1720144248983,-816.73,0.00049315,120]
[331227718,1720144248992,-816.73,0.00049315,120]
[331227720,1720144249002,-816.73,0.00049315,120]
[331227723,1720144249012,-816.73,0.00049315,120]
[331227724,1720144249021,-816.73,0.00049315,120]
[331227726,1720144249031,-816.73,0.00049315,120]
[331227729,1720144249040,-816.73,0.00049315,120]
[331227731,1720144249050,-816.73,0.00049315,120]
[331227733,1720144249059,-816.73,0.00049315,120]
[331227734,1720144249068,-816.73,0.00049315,120]
[331227737,1720144249078,-816.73,0.00049315,120]
[331227739,1720144249087,-504.37484489,0.00049315,120]
[331227740,1720144249096,-816.73,0.00049315,120]
[331227742,1720144249105,-816.73,0.00049315,120]
[331227745,1720144249115,-816.73,0.00049315,120]
[331227747,1720144249124,-816.73,0.00049315,120]
[331227748,1720144249133,-501.34358246,0.00049315,120]
[331227750,1720144249142,-816.7928393,0.00049315,120]
[331227752,1720144249152,-501.34923841,0.00049315,120]
[331227754,1720144249161,-508.18365502,0.00049315,120]
[331227757,1720144249171,-500.799629,0.00049315,120]
[331227759,1720144249180,-501.35131727,0.00049315,120]
[331227761,1720144249192,-500.0,0.00049315,120]
[331227763,1720144249201,-501.80498587,0.00049315,120]
[331227764,1720144249211,-500.0,0.00049315,120]
[331227765,1720144249221,-500.0,0.00049315,120]
[331227766,1720144249230,-501.76904967,0.00049315,120]
[331227767,1720144249240,-501.03672563,0.00049315,120]
[331227768,1720144249250,-500.0,0.00049315,120]
[331227769,1720144249259,-151.0,0.00049315,14]
[331227771,1720144249268,-501.1349625,0.00049315,30]
[331227772,1720144249277,-500.0,0.00049315,120]
[331227774,1720144249287,-500.08389424,0.00049315,30]
[331227776,1720144249296,-151.0,0.00049315,14]
[331227778,1720144249306,-500.0,0.00049315,120]
[331227780,1720144249315,-500.0,0.00049315,120]
[331227782,1720144249325,-500.0,0.00049315,120]
[331227784,1720144249334,-151.0,0.00049315,14]
[331227786,1720144249344,-500.0,0.00049315,120]
[331227787,1720144249353,-500.0,0.00049315,120]
[331227788,1720144249363,-626.8,0.00049315,120]
[331227789,1720144249372,-1047.68191965,0.00049315,120]
[331227790,1720144249382,-500.0,0.00049315,120]
[331227791,1720144249391,-509.23638394,0.00049315,120]
[331227792,1720144249401,-500.84892319,0.00049315,2]
[331227793,1720144249410,-634.77697843,0.00049315,120]
[331227794,1720144249419,-500.0,0.00049315,120]
[331227795,1720144249429,-500.99758094,0.00049315,120]
[331227796,1720144249440,-151.0,0.00049315,14]
[331227797,1720144249449,-500.0,0.00049315,120]
[331227798,1720144249458,-500.0,0.00049315,120]
[331227799,1720144249467,-501.94635212,0.00049315,120]
[331227800,1720144249475,-500.0,0.00049315,120]
[331227801,1720144249484,-500.0,0.00049315,60]
[331227802,1720144249494,-500.0,0.00049315,120]
[331227803,1720144249503,-152.404732,0.00049315,14]
[331227804,1720144249513,-501.53999046,0.00049315,120]
[331227805,1720144249522,-502.14243553,0.00049315,120]
[331227806,1720144249531,-500.0,0.00049315,120]
[331227807,1720144249540,-500.0,0.00049315,120]
[331227808,1720144249550,-500.55459958,0.00049315,120]
[331227809,1720144249559,-324.32098128,0.00049315,120]
[331227810,1720144249569,-503.13324778,0.00049315,120]
[331227811,1720144249578,-501.55815007,0.00049315,120]
[331227812,1720144249589,-501.453072,0.00049315,120]
[331227813,1720144249598,-500.0,0.00049315,120]
[331227814,1720144249608,-500.43238519,0.00049315,120]
[331227815,1720144249623,-500.0,0.00049315,120]
[331227816,1720144249632,-500.0,0.00049315,120]
[331227817,1720144249642,-500.0,0.00049315,120]
[331227818,1720144249651,-161.211087,0.00049315,14]
[331227819,1720144249660,-501.95378612,0.00049315,120]
[331227820,1720144249670,-500.0,0.00049315,120]
[331227821,1720144249679,-500.0,0.00049315,120]
[331227822,1720144249690,-161.211087,0.00049315,14]
[331227823,1720144249700,-500.0,0.00049315,120]
[331227824,1720144249710,-500.0,0.00049315,120]
[331227825,1720144249720,-500.26428317,0.00049315,120]
[331227826,1720144249730,-500.0,0.00049315,120]
[331227827,1720144249739,-500.0,0.00049315,120]
[331227828,1720144249749,-500.0,0.00049315,120]
[331227829,1720144249758,-501.30445762,0.00049315,120]
[331227830,1720144249767,-500.0,0.00049315,120]
[331227831,1720144249777,-504.38448614,0.00049315,120]
[331227832,1720144249787,-500.0,0.00049315,120]
[331227833,1720144249798,-501.63095017,0.00049315,120]
[331227834,1720144249809,-503.49489871,0.00049315,120]
[331227835,1720144249819,-501.11638725,0.00049315,120]
[331227836,1720144249828,-500.50633888,0.00049315,120]
[331227837,1720144249838,-151.0,0.00049315,14]
[331227838,1720144249848,-500.0,0.00049315,120]
[331227839,1720144249857,-500.0,0.00049315,120]
[331227840,1720144249866,-500.0,0.00049315,120]
[331227841,1720144249875,-500.0,0.00049315,120]
[331227842,1720144249885,-500.0,0.00049315,120]
[331227843,1720144249894,-500.0,0.00049315,120]
[331227844,1720144249907,-508.37079989,0.00049315,120]
[331227845,1720144249916,-500.67275237,0.00049315,120]
[331227846,1720144249926,-500.0,0.00049315,120]
[331227847,1720144249936,-500.0,0.00049315,120]
[331227848,1720144249950,-500.0,0.00049315,120]
[331227849,1720144249959,-500.0,0.00049315,120]
[331227850,1720144249968,-501.79292108,0.00049315,120]
[331227851,1720144249978,-500.0,0.00049315,120]
[331227852,1720144249987,-507.27,0.00049315,120]
[331227853,1720144249996,-503.33581902,0.00049315,120]
[331227854,1720144250005,-500.0,0.00049315,120]
[331227855,1720144250015,-500.0,0.00049315,120]
[331227856,1720144250024,-501.84269159,0.00049315,120]
[331227857,1720144250034,-478.07167895,0.00049315,120]
[331227858,1720144250044,-501.45234435,0.00049315,120]
[331227859,1720144250053,-500.0,0.00049315,120]
[331227860,1720144250063,-500.0,0.00049315,2]
[331227861,1720144250072,-500.0,0.00049315,120]
[331227862,1720144250081,-501.82342667,0.00049315,120]
[331227863,1720144250091,-500.0,0.00049315,120]
[331227864,1720144250100,-500.0,0.00049315,120]
[331227865,1720144250110,-500.77952168,0.00049315,120]
[331227866,1720144250119,-504.13004759,0.00049315,120]
[331227867,1720144250129,-548.36201254,0.00049315,120]
[331227868,1720144250138,-500.0,0.00049315,120]
[331227869,1720144250147,-500.0,0.00049315,120]
[331227870,1720144250157,-549.22048197,0.00049315,120]
[331227871,1720144250166,-502.97840779,0.00049315,120]
[331227872,1720144250175,-501.87244754,0.00049315,120]
[331227873,1720144250186,-500.0,0.00049315,120]
[331227874,1720144250195,-500.0,0.00049315,120]
[331227875,1720144250204,-502.56821554,0.00049315,120]
[331227876,1720144250213,-500.0,0.00049315,120]
[331227877,1720144250222,-500.49842832,0.00049315,120]
[331227878,1720144250231,-153.94307983,0.00049315,120]
[331227879,1720144250241,-500.289577,0.00049315,120]
[331227880,1720144250250,-501.75172348,0.00049315,120]
[331227881,1720144250259,-500.0,0.00049315,120]
[331227882,1720144250269,-500.90325311,0.00049315,120]
[331227883,1720144250278,-502.4769396,0.00049315,120]
[331227884,1720144250287,-500.0,0.00049315,120]
[331227885,1720144250296,-500.0,0.00049315,120]
[331227886,1720144250306,-615.7250052,0.00049315,120]
[331227887,1720144250315,-500.0,0.00049315,120]
[331227888,1720144250324,-500.0,0.00049315,120]
[331227889,1720144250333,-500.0,0.00049315,120]
[331227890,1720144250342,-500.0,0.00049315,120]
[331227891,1720144250352,-500.0,0.00049315,120]
[331227892,1720144250361,-504.46621602,0.00049315,120]
[331227893,1720144250371,-500.0,0.00049315,120]
[331227894,1720144250380,-2772.89,0.00049315,120]
[331227895,1720144250389,-500.0,0.00049315,120]
[331227896,1720144250399,-501.25458695,0.00049315,120]
[331227897,1720144250409,-500.90321824,0.00049315,120]
[331227898,1720144250418,-500.0,0.00049315,120]
[331227899,1720144250427,-500.0,0.00049315,120]
[331227900,1720144250442,-500.0,0.00049315,120]
[331227901,1720144250450,-500.0,0.00049315,120]
[331227902,1720144250459,-782.96,0.00049315,120]
[331227903,1720144250468,-503.03148881,0.00049315,120]
[331227904,1720144250477,-500.0,0.00049315,120]
[331227905,1720144250490,-500.0,0.00049315,120]
[331227906,1720144250501,-500.0,0.00049315,120]
[331227907,1720144250510,-600.95410159,0.00049315,120]
[331227908,1720144250519,-500.0,0.00049315,120]
[331227909,1720144250529,-408.99966565,0.00049315,120]
[331227910,1720144250538,-163.41932804,0.00049315,120]
[331227911,1720144250547,-500.0,0.00049315,120]
[331227912,1720144250647,-501.30578587,0.00049315,120]
[331227913,1720144250658,-186.42281924,0.00049315,120]
[331227914,1720144250668,-508.55441035,0.00049315,120]
[331227915,1720144250677,-501.10277195,0.00049315,120]
[331227916,1720144250689,-500.45618259,0.00049315,120]
[331227917,1720144250699,-500.0,0.00049315,120]
[331227918,1720144250709,-500.0,0.00049315,120]
[331227919,1720144250719,-501.43173321,0.00049315,120]
[331227920,1720144250728,-500.0,0.00049315,120]
[331227921,1720144250737,-502.14005226,0.00049315,120]
[331227922,1720144250746,-500.0,0.00049315,120]
[331227923,1720144250756,-500.0,0.00049315,120]
[331227924,1720144250766,-500.0,0.00049315,120]
[331227925,1720144250775,-500.0,0.00049315,120]
[331227926,1720144250786,-500.0,0.00049315,120]
[331227927,1720144250795,-511.02017474,0.00049315,120]
[331227928,1720144250805,-500.0,0.00049315,120]
[331227929,1720144250815,-580.68084116,0.00049315,120]
[331227930,1720144250827,-500.0,0.00049315,120]
[331227931,1720144250837,-505.13282503,0.00049315,120]
[331227932,1720144250848,-500.0,0.00049315,120]
[331227933,1720144250858,-500.0,0.00049315,120]
[331227934,1720144250868,-503.64205831,0.00049315,120]
[331227935,1720144250878,-501.73781168,0.00049315,120]
[331227936,1720144250887,-500.0,0.00049315,120]
[331227937,1720144250896,-500.0,0.00049315,120]
[331227938,1720144250906,-500.0,0.00049315,120]
[331227939,1720144250915,-500.0,0.00049315,20]
[331227940,1720144250925,-1300.52,0.00049315,120]
[331227941,1720144250936,-501.71499339,0.00049315,120]
[331227942,1720144250949,-500.0,0.00049315,120]
[331227943,1720144250961,-500.0,0.00049315,120]
[331227944,1720144250971,-500.0,0.00049315,120]
[331227945,1720144250981,-501.08694703,0.00049315,120]
[331227946,1720144250991,-500.0,0.00049315,120]
[331227947,1720144251000,-502.06671193,0.00049315,120]
[331227948,1720144251009,-503.63786451,0.00049315,120]
[331227949,1720144251018,-509.01324042,0.00049315,120]
[331227950,1720144251028,-502.97208518,0.00049315,120]
[331227951,1720144251037,-489.73419587,0.00049315,120]
[331227952,1720144251047,-500.0,0.00049315,120]
[331227953,1720144251056,-503.10587079,0.00049315,120]
[331227954,1720144251066,-502.15950612,0.00049315,120]
[331227955,1720144251076,-1002.56826427,0.00049315,15]
[331227956,1720144251086,-501.45784633,0.00049315,120]
[331227957,1720144251096,-502.0564448,0.00049315,120]
[331227958,1720144251105,-500.0,0.00049315,120]
[331227959,1720144251115,-500.0,0.00049315,120]
[331227960,1720144251124,-500.0,0.00049315,120]
[331227961,1720144251134,-500.0,0.00049315,120]
[331227962,1720144251144,-500.0,0.00049315,120]
[331227963,1720144251153,-500.0,0.00049315,120]
[331227964,1720144251162,-532.12319704,0.00049315,120]
[331227965,1720144251172,-500.0,0.00049315,120]
[331227966,1720144251182,-501.96518198,0.00049315,120]
[331227967,1720144251195,-501.24138291,0.00049315,120]
[331227968,1720144251204,-502.50248708,0.00049315,120]
[331227969,1720144251214,-500.0,0.00049315,120]
[331227970,1720144251224,-500.0,0.00049315,120]
[331227971,1720144251233,-500.0,0.00049315,120]
[331227972,1720144251242,-500.0,0.00049315,120]
[331227973,1720144251252,-500.0,0.00049315,120]
[331227974,1720144251262,-323.57124431,0.00049315,120]
[331227975,1720144251271,-500.0,0.00049315,120]
[331227976,1720144251280,-500.79838059,0.00049315,120]
[331227977,1720144251290,-500.0,0.00049315,120]
[331227978,1720144251300,-151.0,0.00049315,14]
[331227979,1720144251309,-151.0,0.00049315,14]
[331227980,1720144251319,-500.0,0.00049315,120]
[331227981,1720144251328,-151.0,0.00049315,14]
[331227982,1720144251337,-503.75260681,0.00049315,120]
[331227983,1720144251347,-151.0,0.00049315,14]
[331227984,1720144251356,-151.0,0.00049315,14]
[331227985,1720144251365,-151.0,0.00049315,14]
[331227986,1720144251375,-151.0,0.00049315,14]
[331227987,1720144251384,-600.0,0.00049315,120]
[331227988,1720144251394,-151.0,0.00049315,14]
[331227989,1720144251403,-600.0,0.00049315,120]
[331227990,1720144251412,-600.0,0.00049315,120]
[331227991,1720144251421,-503.91520777,0.00049315,120]
[331227992,1720144251430,-600.0,0.00049315,120]
[331227993,1720144251442,-501.71050619,0.00049315,120]
[331227994,1720144251451,-600.0,0.00049315,120]
[331227995,1720144251461,-600.0,0.00049315,120]
[331227996,1720144251470,-501.52079868,0.00049315,120]
[331227997,1720144251479,-600.0,0.00049315,120]
[331227998,1720144251488,-500.0,0.00049315,120]
[331227999,1720144251497,-600.0,0.00049315,120]
[331228000,1720144251507,-600.0,0.00049315,120]
[331228001,1720144251519,-268.60953868,0.00049315,120]
[331228002,1720144251529,-500.0,0.00049315,120]
[331228003,1720144251539,-500.0,0.00049315,120]
[331228004,1720144251549,-501.90477085,0.00049315,120]
[331228005,1720144251558,-502.24195391,0.00049315,120]
[331228006,1720144251571,-501.59612756,0.00049315,120]
[331228007,1720144251581,-500.0,0.00049315,120]
[331228008,1720144251590,-835.58,0.00049315,21]
[331228009,1720144251599,-500.0,0.00049315,120]
[331228010,1720144251609,-500.0,0.00049315,120]
[331228011,1720144251625,-500.0,0.00049315,120]
[331228012,1720144251634,-453.17560806,0.00049315,120]
[331228013,1720144251643,-500.0,0.00049315,120]
[331228014,1720144251653,-497.28279323,0.00049315,120]
[331228015,1720144251664,-228.67936411,0.00049315,120]
[331228016,1720144251673,-500.0,0.00049315,120]
[331228017,1720144251683,-501.4423934,0.00049315,120]
[331228018,1720144251695,-500.0,0.00049315,120]
[331228019,1720144251704,-500.0,0.00049315,120]
[331228020,1720144251714,-1092.28,0.00049315,120]
[331228021,1720144251733,-500.0,0.00049315,120]
[331228022,1720144251745,-2836.74,0.00049315,120]
[331228023,1720144251755,-512.11935841,0.00049315,120]
[331228024,1720144251764,-500.0,0.00049315,120]
[331228025,1720144251774,-500.0,0.00049315,120]
[331228026,1720144251784,-592.21397003,0.00049315,120]
[331228027,1720144251794,-1079.55,0.00049315,120]
[331228028,1720144251805,-500.61265607,0.00049315,120]
[331228029,1720144251815,-151.0,0.00049315,14]
[331228030,1720144251825,-153.232562,0.00049315,14]
[331228031,1720144251834,-551.46047832,0.00049315,120]
[331228032,1720144251844,-540.2280696,0.00049315,120]
[331228033,1720144251854,-503.17023142,0.00049315,120]
[331228034,1720144251865,-500.60494766,0.00049315,120]
[331228035,1720144251875,-502.99949777,0.00049315,120]
[331228036,1720144251886,-500.36908145,0.00049315,120]
[331228037,1720144251896,-500.0,0.00049315,120]
[331228038,1720144251908,-501.56245493,0.00049315,120]
[331228039,1720144251918,-500.0,0.00049315,120]
[331228040,1720144251927,-500.0,0.00049315,120]
[331228041,1720144251937,-501.40897098,0.00049315,120]
[331228042,1720144251947,-501.74196513,0.00049315,120]
[331228043,1720144251956,-500.6745066,0.00049315,7]